bitfinex-derivatives/quotes_SOLF0:USTF0_20250714
["timestamp","ask_amount","ask_price","bid_price","bid_amount"]
[1752470452727,5.9658,167.57,167.54,5.9665]
[1752470452933,5.9658,167.57,167.55,3.52]
[1752470452934,3.53,167.56,167.55,3.52]
[1752470456635,3.53,167.56,167.55,9.4862]
[1752470457030,9.09789531,167.59,167.55,5.9662]
[1752470457234,3.53,167.57,167.56,3.52]
[1752470460231,3.39,167.6,167.57,3.59]
[1752470461035,3.39,167.58,167.56,3.59]
[1752470461227,174.78,167.61,167.56,3.59]
[1752470461432,3.39,167.58,167.56,3.59]
[1752470461630,3.39,167.58,167.54,4.96719948]
[1752470461631,3.39,167.6,167.58,3.59]
[1752470462330,5.9645,167.6,167.58,3.59]
[1752470462532,3.39,167.59,167.58,3.59]
[1752470465033,3.39,167.59,167.58,9.5552]
[1752470465933,3.39,167.59,167.58,3.59]
[1752470466633,178.17,167.61,167.58,9.5552]
[1752470466838,178.17,167.61,167.59,3.59]
[1752470466839,3.39,167.6,167.59,3.59]
[1752470468940,3.39,167.6,167.59,9.5548]
[1752470469140,12.48639531,167.63,167.57,3.59]
[1752470469342,3.39,167.62,167.58,3.59]
[1752470469642,3.39,167.58,167.57,3.59]
[1752470471446,3.39,167.58,167.57,9.5555]
[1752470471643,3.39,167.59,167.57,9.5555]
[1752470471848,3.39,167.59,167.58,3.59]
[1752470472143,3.39,167.58,167.57,3.59]
[1752470472746,3.39,167.58,167.57,9.5555]
[1752470472950,3.39,167.58,167.57,3.59]
[1752470473652,3.39,167.59,167.57,3.59]
[1752470474745,3.39,167.58,167.57,3.59]
[1752470475146,9.3552,167.58,167.57,3.59]
[1752470475447,3.39,167.58,167.54,4.96719948]
[1752470475746,3.39,167.54,167.51,6.61314679]
[1752470475946,9.10059531,167.52,167.51,6.61314679]
[1752470476540,12.49059531,167.52,167.51,6.61314679]
[1752470476741,12.49059531,167.52,167.49,16.17144679]
[1752470476945,3.39,167.51,167.49,16.17144679]
[1752470477147,3.39,167.5,167.49,10.20314679]
[1752470477941,3.39,167.5,167.49,3.59]
[1752470480349,3.13299531,167.52,167.49,9.5584]
[1752470480553,3.39,167.51,167.45,6.72299531]
[1752470480755,3.39,167.51,167.5,3.59]
[1752470480963,3.13299531,167.52,167.5,3.59]
[1752470481259,352.0,167.71,167.5,9.5579]
[1752470481260,6.52516949,167.56,167.5,9.5579]
[1752470481551,5.9668,167.54,167.52,3.59]
[1752470481746,3.39,167.53,167.52,3.59]
[1752470482146,174.64,167.57,167.52,3.59]
[1752470482454,3.39,167.59,167.48,6.61314679]
[1752470482651,3.39,167.51,167.48,6.61314679]
[1752470482852,3.39,167.5,167.47,3.59]
[1752470483053,3.1344965,167.48,167.47,3.59]
[1752470483252,3.39,167.48,167.47,3.59]
[1752470483448,3.39,167.48,167.44,3.59]
[1752470483649,3.39,167.48,167.42,3.59]
[1752470483650,3.39,167.43,167.42,3.59]
[1752470483958,6.5244965,167.43,167.42,9.5609]
[1752470484357,3.39,167.43,167.42,9.5609]
[1752470484657,3.1344965,167.44,167.42,5.9709]
[1752470484959,3.1344965,167.44,167.43,9.5605]
[1752470485156,6.5244965,167.46,167.43,3.59]
[1752470485350,6.5244965,167.46,167.45,9.5598]
[1752470485755,3.1344965,167.48,167.45,5.9695]
[1752470485960,6.5244965,167.48,167.47,3.59]
[1752470486259,3.39,167.49,167.48,3.59]
[1752470487354,3.39,167.49,167.38,10.01636316]
[1752470487355,3.39,167.54,167.45,3.59]
[1752470487660,3.39,167.54,167.47,3.59]
[1752470488058,3.39,167.56,167.51,5.9673]
[1752470488353,3.39,167.54,167.53,3.59]
[1752470488555,3.39,167.54,167.51,3.59]
[1752470488758,3.39,167.53,167.52,3.59]
[1752470489263,3.39,167.55,167.54,3.59]
[1752470489763,3.39,167.54,167.53,3.59]
[1752470490160,3.39,167.56,167.49,3.59]
[1752470490562,9.3559,167.56,167.51,5.9673]
[1752470490863,3.45,167.54,167.53,3.53]
[1752470492857,519.11,167.57,167.53,3.53]
[1752470493057,3.45,167.56,167.53,3.53]
[1752470493362,3.45,167.56,167.53,9.4967]
[1752470493560,178.09,167.58,167.54,3.53]
[1752470493759,178.09,167.58,167.52,3.1344965]
[1752470493760,3.45,167.57,167.52,3.53]
[1752470493956,3.13352009,167.55,167.47,3.53]
[1752470494162,3.45,167.54,167.47,6.66352009]
[1752470494362,3.45,167.54,167.48,3.53]
[1752470494558,3.45,167.54,167.51,3.53]
[1752470494869,3.45,167.52,167.46,3.53]
[1752470495161,3.45,167.48,167.43,6.61314679]
[1752470495364,3.13352009,167.47,167.44,6.61314679]
[1752470495556,3.13352009,167.47,167.43,3.53]
[1752470495557,3.45,167.44,167.43,3.53]
[1752470495761,3.45,167.46,167.44,3.53]
[1752470495959,3.45,167.46,167.38,3.13352009]
[1752470495960,3.45,167.45,167.38,3.13352009]
[1752470496158,3.45,167.45,167.36,6.61314679]
[1752470496159,3.45,167.43,167.39,3.53]
[1752470496561,3.45,167.43,167.39,5.9719]
[1752470496762,3.45,167.42,167.4,3.53]
[1752470496965,3.45,167.41,167.4,3.53]
[1752470498262,5.23454542,167.43,167.34,174.62]
[1752470498263,3.45,167.4,167.39,3.53]
[1752470498661,3.45,167.4,167.37,5.9726]
[1752470498861,3.45,167.39,167.38,3.53]
[1752470499072,3.45,167.4,167.34,3.53]
[1752470499565,3.45,167.38,167.33,127.34328618]
[1752470499866,3.45,167.37,167.36,3.53]
[1752470500567,3.45,167.36,167.34,3.53]
[1752470500767,3.45,167.35,167.34,3.53]
[1752470501066,3.45,167.35,167.34,9.5037]
[1752470501460,3.45,167.35,167.34,3.53]
[1752470501663,3.45,167.38,167.32,3.53]
[1752470502168,3.45,167.38,167.33,9.5038]
[1752470502366,3.45,167.38,167.28,3.53]
[1752470502566,3.45,167.38,167.3,3.53]
[1752470502760,5.23454542,167.39,167.34,5.9736]
[1752470502957,3.45,167.36,167.35,3.53]
[1752470503361,3.45,167.37,167.33,3.53]
[1752470504069,3.45,167.37,167.34,3.53]
[1752470504668,3.45,167.37,167.28,5.23454542]
[1752470504865,3.45,167.37,167.33,9.504]
[1752470505065,3.45,167.37,167.29,3.53]
[1752470505264,3.45,167.37,167.31,3.53]
[1752470505570,3.45,167.36,167.35,3.53]
[1752470505759,5.23454542,167.36,167.31,3.53]
[1752470505962,3.45,167.35,167.27,3.53]
[1752470506663,3.45,167.35,167.31,5.9747]
[1752470506860,3.45,167.35,167.31,3.53]
[1752470507166,3.45,167.33,167.31,9.5048]
[1752470507469,3.45,167.32,167.31,3.53]
[1752470507672,3.45,167.31,167.25,3.53]
[1752470507968,3.45,167.31,167.27,5.9759]
[1752470508267,3.45,167.31,167.24,3.53]
[1752470509169,3.45,167.31,167.27,3.53]
[1752470509771,3.45,167.31,167.23,5.23454542]
[1752470509973,3.45,167.31,167.28,3.53]
[1752470510273,3.45,167.31,167.28,9.5056]
[1752470510962,3.45,167.3,167.29,9.5053]
[1752470511163,3.45,167.34,167.32,3.53]
[1752470511365,3.45,167.33,167.3,3.53]
[1752470511568,3.45,167.36,167.26,5.23454542]
[1752470511875,3.45,167.36,167.29,3.53]
[1752470512172,3.45,167.35,167.32,3.53]
[1752470512470,5.9745,167.32,167.28,9.5058]
[1752470512672,3.45,167.31,167.26,3.53]
[1752470512871,3.45,167.31,167.22,5.23454542]
[1752470512872,3.45,167.31,167.23,3.53]
[1752470513578,3.45,167.29,167.23,3.53]
[1752470515265,175.88,167.35,167.23,3.53]
[1752470515466,175.88,167.35,167.3,3.53]
[1752470515467,3.45,167.33,167.3,3.53]
[1752470515674,3.45,167.33,167.28,3.53]
[1752470515864,3.45,167.33,167.29,3.53]
[1752470516274,5.9743,167.33,167.29,9.5054]
[1752470516475,3.45,167.32,167.29,3.53]
[1752470516678,3.45,167.29,167.2,5.23454542]
[1752470516972,3.45,167.29,167.23,3.53]
[1752470517171,3.45,167.29,167.25,3.53]
[1752470517372,3.45,167.31,167.3,3.53]
[1752470517673,3.45,167.32,167.31,3.53]
[1752470518279,3.45,167.36,167.27,3.53]
[1752470518577,5.23454542,167.37,167.28,5.23454542]
[1752470518578,3.45,167.35,167.28,5.23454542]
[1752470518766,3.45,167.35,167.29,3.53]
[1752470519475,3.45,167.34,167.31,3.53]
[1752470519669,3.45,167.34,167.28,5.23454542]
[1752470519670,3.45,167.34,167.32,3.53]
[1752470519875,3.45,167.35,167.29,3.53]
[1752470520069,5.9738,167.34,167.3,5.9751]
[1752470520272,3.45,167.33,167.3,9.5051]
[1752470520476,5.9738,167.34,167.3,9.5051]
[1752470520672,3.33,167.33,167.31,9.4047]
[1752470520876,3.33,167.33,167.32,3.43]
[1752470521880,3.33,167.36,167.29,3.43]
[1752470522176,3.33,167.36,167.31,3.43]
[1752470522474,3.33,167.36,167.35,3.43]
[1752470522678,3.33,167.39,167.32,5.23454542]
[1752470522879,3.33,167.38,167.37,3.43]
[1752470523473,5.23454542,167.43,167.37,3.43]
[1752470523674,3.33,167.42,167.35,3.43]
[1752470523871,9.301,167.42,167.35,3.43]
[1752470524075,3.33,167.42,167.35,3.43]
[1752470524274,3.33,167.42,167.38,5.972]
[1752470524474,3.33,167.41,167.4,3.43]
[1752470524869,176.34,167.44,167.39,3.43]
[1752470524870,3.33,167.4,167.39,3.43]
[1752470525070,3.33,167.39,167.32,5.23454542]
[1752470525270,3.33,167.39,167.33,3.43]
[1752470526478,3.33,167.37,167.35,9.4031]
[1752470527381,3.33,167.36,167.35,3.43]
[1752470528676,3.33,167.38,167.36,3.43]
[1752470528983,3.33,167.38,167.37,3.43]
[1752470529775,3.33,167.4,167.38,3.43]
[1752470529981,3.33,167.4,167.39,3.43]
[1752470530283,5.9721,167.39,167.35,5.9731]
[1752470530484,3.33,167.4,167.31,3.43]
[1752470530688,3.33,167.39,167.33,3.43]
[1752470530984,3.33,167.33,167.32,3.43]
[1752470532787,3.33,167.31,167.3,3.43]
[1752470534584,5.23454542,167.35,167.2,11.83281071]
[1752470534585,3.33,167.33,167.32,3.43]
[1752470536781,178.16,167.39,167.32,3.43]
[1752470536986,3.33,167.37,167.27,5.23454542]
[1752470537181,5.24075808,167.3,167.24,4.97609755]
[1752470537382,3.33,167.27,167.23,8.40609755]
[1752470537687,3.33,167.24,167.2,4.97609755]
[1752470537874,8.57075808,167.21,167.2,4.97609755]
[1752470538483,8.57075808,167.21,167.2,8.40609755]
[1752470538683,3.33,167.21,167.2,8.40609755]
[1752470539082,3.33,167.21,167.2,4.97609755]
[1752470539281,5.24075808,167.22,167.19,6.59826529]
[1752470539583,5.24075808,167.22,167.18,3.43]
[1752470539584,11.21915808,167.22,167.2,6.59826529]
[1752470539780,3.33,167.21,167.2,6.59826529]
[1752470540486,3.33,167.21,167.19,9.89739794]
[1752470540785,11.21915808,167.22,167.18,3.43]
[1752470540786,3.33,167.2,167.18,3.43]
[1752470541381,3.33,167.17,167.15,8.4388806]
[1752470541585,3.33,167.16,167.15,3.43]
[1752470542684,3.33,167.15,167.14,3.43]
[1752470543184,3.33,167.14,167.13,8.4388806]
[1752470544280,3.33,167.14,167.13,3.43]
[1752470544683,5.25129654,167.15,167.13,3.43]
[1752470544883,8.58129654,167.15,167.14,3.43]
[1752470545288,5.25129654,167.17,167.14,3.43]
[1752470545486,3.33,167.16,167.15,3.43]
[1752470545784,3.33,167.3,167.15,3.43]
[1752470545985,8.57803181,167.23,167.15,3.43]
[1752470546387,3.33,167.22,167.15,3.43]
[1752470546591,3.33,167.21,167.18,3.43]
[1752470546888,3.33,167.21,167.19,3.43]
[1752470547584,3.33,167.21,167.2,3.43]
[1752470548379,5.9774,167.24,167.2,9.4087]
[1752470548585,3.33,167.22,167.21,3.43]
[1752470548984,3.33,167.23,167.22,3.43]
[1752470550290,5.9769,167.26,167.19,3.43]
[1752470550481,3.38,167.24,167.22,3.44]
[1752470550681,3.38,167.24,167.23,3.44]
[1752470551084,3.38,167.24,167.2,5.9786]
[1752470551279,3.38,167.23,167.22,3.44]
[1752470552089,3.38,167.24,167.23,3.44]
[1752470553990,3.38,167.3,167.23,3.44]
[1752470554190,3.38,167.27,167.17,5.24291658]
[1752470554394,3.38,167.23,167.16,3.44]
[1752470554585,3.38,167.25,167.17,5.0088806]
[1752470554786,3.38,167.25,167.18,3.44]
[1752470555088,3.38,167.25,167.21,3.44]
[1752470555588,523.20483083,167.4,167.24,5.24291658]
[1752470555797,367.2,167.44,167.22,8.4488806]
[1752470556087,3.38,167.4,167.3,5.24291658]
[1752470556292,3.38,167.4,167.31,8.68291658]
[1752470556491,3.38,167.4,167.32,3.44]
[1752470556688,3.38,167.37,167.28,3.44]
[1752470556989,3.38,167.37,167.29,5.9754]
[1752470557183,3.38,167.37,167.28,5.24291658]
[1752470557389,3.38,167.37,167.29,3.44]
[1752470557390,8.62291658,167.37,167.29,3.44]
[1752470557588,8.62291658,167.37,167.28,5.24291658]
[1752470557589,3.38,167.36,167.31,3.44]
[1752470557891,5.24291658,167.39,167.29,3.44]
[1752470558093,9.3527,167.37,167.31,5.9745]
[1752470558293,3.38,167.35,167.33,3.44]
[1752470558595,3.38,167.34,167.25,3.44]
[1752470558895,3.38,167.32,167.25,3.44]
[1752470559288,8.62291658,167.31,167.25,3.44]
[1752470559489,3.38,167.3,167.25,3.44]
[1752470559786,5.24291658,167.31,167.25,3.44]
[1752470559787,3.38,167.29,167.25,3.44]
[1752470559991,5.24291658,167.31,167.24,5.9773]
[1752470560192,3.38,167.28,167.26,3.44]
[1752470560791,13.25724624,167.46,167.27,10.48583316]
[1752470560986,13.25724624,167.46,167.3,5.23327151]
[1752470560987,9.87724624,167.46,167.3,5.23327151]
[1752470561187,377.6,167.51,167.31,8.4488806]
[1752470561390,377.6,167.51,167.4,3.44]
[1752470561693,3.38,167.49,167.4,3.44]
[1752470561894,3.38,167.46,167.4,3.44]
[1752470562289,3.38,167.46,167.38,3.44]
[1752470562491,377.6,167.51,167.38,3.44]
[1752470562492,3.38,167.45,167.38,3.44]
[1752470562692,8.61140837,167.45,167.38,3.44]
[1752470562894,3.38,167.44,167.38,3.44]
[1752470563301,3.38,167.44,167.39,6.032203]
[1752470563496,3.38,167.44,167.4,6.032203]
[1752470563695,3.38,167.5,167.41,6.032203]
[1752470563993,3.38,167.5,167.38,3.44]
[1752470563994,3.38,167.44,167.38,3.44]
[1752470564200,516.36,167.49,167.39,6.03133791]
[1752470564201,3.38,167.48,167.39,6.03133791]
[1752470564397,3.38,167.48,167.42,3.44]
[1752470564788,3.38,167.48,167.43,3.44]
[1752470565195,521.59140837,167.49,167.44,3.44]
[1752470565395,3.38,167.48,167.44,3.44]
[1752470565597,3.38,167.47,167.44,3.44]
[1752470565798,3.38,167.57,167.4,3.44]
[1752470566099,6.58483083,167.61,167.54,3.44]
[1752470566288,3.38,167.63,167.54,3.44]
[1752470566691,3.38,167.63,167.54,8.67140837]
[1752470566899,418.28,167.65,167.57,5.23140837]
[1752470567193,418.28,167.65,167.56,3.44]
[1752470567194,426.89140837,167.65,167.58,3.44]
[1752470567392,3.38,167.64,167.58,3.44]
[1752470567901,8.61140837,167.64,167.58,3.44]
[1752470568101,3.38,167.64,167.54,5.23140837]
[1752470568297,3.38,167.64,167.55,3.44]
[1752470568491,3.38,167.64,167.57,3.44]
[1752470568703,3.38,167.62,167.54,3.44]
[1752470568896,3.38,167.6,167.54,3.44]
[1752470569098,3.38,167.6,167.49,3.44]
[1752470569599,3.38,167.58,167.49,3.44]
[1752470569799,3.38,167.57,167.49,3.44]
[1752470569994,5.9667,167.54,167.49,3.44]
[1752470570202,3.38,167.53,167.47,3.44]
[1752470570495,937.72,167.58,167.42,118.30113259]
[1752470570496,3.38,167.5,167.42,118.30113259]
[1752470570697,3.38,167.5,167.3,9.89739794]
[1752470570698,3.38,167.47,167.39,3.44]
[1752470571002,3.38,167.47,167.31,6.67850747]
[1752470571003,8.73329514,167.45,167.4,6.0111898]
[1752470571202,3.38,167.42,167.39,3.44]
[1752470571398,3.38,167.42,167.4,9.44965202]
[1752470571598,421.76,167.46,167.31,5.0088806]
[1752470571798,3.38,167.41,167.38,3.44]
[1752470572097,424.74,167.4,167.39,6.00972815]
[1752470572302,424.74,167.4,167.35,3.44]
[1752470572303,3.38,167.39,167.35,3.44]
[1752470572504,3.38,167.37,167.36,6.00885482]
[1752470573401,421.36,167.4,167.34,3.44]
[1752470573602,424.74,167.4,167.34,3.44]
[1752470574702,3.38,167.37,167.34,3.44]
[1752470574994,3.38,167.36,167.35,4.63251563]
[1752470575195,3.38,167.38,167.35,8.07251563]
[1752470575397,3.38,167.38,167.36,4.63251563]
[1752470575605,3.38,167.38,167.37,4.63251563]
[1752470576103,3.38,167.38,167.32,3.44]
[1752470576298,3.38,167.38,167.33,4.6323917]
[1752470576500,5.9734,167.35,167.34,4.6323917]
[1752470576806,422.5,167.35,167.34,4.6323917]
[1752470578702,3.38,167.35,167.34,4.6323917]
[1752470578903,212.84,167.35,167.34,11.31089917]
[1752470579097,197.71788873,167.35,167.34,4.6323917]
[1752470579500,725.26,167.37,167.35,3.44]
[1752470579700,725.26,167.37,167.34,4.6323917]
[1752470580204,725.26,167.37,167.33,3.44]
[1752470580406,725.26,167.37,167.34,3.61]
[1752470580606,734.01514989,167.37,167.24,8.75514989]
[1752470580907,734.01514989,167.37,167.25,3.61]
[1752470581103,3.37,167.36,167.25,3.61]
[1752470582008,9.3434,167.36,167.28,5.9759]
[1752470582203,9.3434,167.36,167.29,3.61]
[1752470582399,3.37,167.36,167.29,3.61]
[1752470583307,9.3433,167.36,167.29,3.61]
[1752470583508,3.37,167.36,167.29,3.61]
[1752470583910,3.37,167.35,167.29,3.61]
[1752470584409,9.3434,167.35,167.29,9.5855]
[1752470584610,9.3434,167.35,167.29,3.61]
[1752470584908,3.37,167.35,167.29,5.9755]
[1752470585110,3.37,167.35,167.26,3.61]
[1752470585410,3.37,167.35,167.29,5.9753]
[1752470585610,3.37,167.35,167.25,8.75514989]
[1752470585813,516.04,167.37,167.29,3.61]
[1752470586013,208.5,167.36,167.29,3.61]
[1752470587109,208.5,167.36,167.31,5.9745]
[1752470587314,211.87,167.36,167.33,3.61]
[1752470588113,208.32,167.35,167.33,3.61]
[1752470588518,211.69,167.35,167.28,3.61]
[1752470588717,3.37,167.34,167.28,3.61]
[1752470589108,3.37,167.35,167.28,3.61]
[1752470589309,3.37,167.32,167.29,3.61]
[1752470589614,3.37,167.31,167.29,3.61]
[1752470589815,208.12,167.3,167.29,3.61]
[1752470590213,207.94,167.3,167.29,3.61]
[1752470591425,207.94,167.3,167.24,3.61]
[1752470591615,213.9152,167.3,167.25,3.61]
[1752470591816,211.31,167.3,167.25,3.61]
[1752470592019,3.37,167.29,167.2,3.61]
[1752470592825,3.37,167.29,167.13,209.56]
[1752470592826,3.37,167.31,167.22,12.36514989]
[1752470593022,207.78,167.3,167.24,3.61]
[1752470593221,207.78,167.29,167.24,3.61]
[1752470593719,533.96,167.37,167.24,3.61]
[1752470593918,17.92,167.44,167.36,8.75514989]
[1752470594121,519.69,167.56,167.43,8.75514989]
[1752470594319,519.69,167.56,167.45,3.61]
[1752470594320,457.03,167.55,167.45,3.61]
[1752470594517,3.37,167.54,167.45,3.61]
[1752470594716,8.73889623,167.53,167.45,3.61]
[1752470594923,453.66,167.55,167.45,3.61]
[1752470595124,3.37,167.51,167.42,3.61]
[1752470595323,3.37,167.49,167.42,3.61]
[1752470595524,454.42,167.48,167.42,3.61]
[1752470595919,454.42,167.48,167.39,5.9717]
[1752470596119,3.37,167.47,167.4,8.18662399]
[1752470596322,519.69,167.46,167.42,3.61]
[1752470596522,524.91905638,167.46,167.34,4.96618109]
[1752470596728,524.91905638,167.46,167.36,3.61]
[1752470597028,528.43842833,167.46,167.38,3.61]
[1752470597228,528.43842833,167.46,167.4,9.5815]
[1752470597426,3.37,167.45,167.4,3.61]
[1752470597634,525.06842833,167.46,167.34,4.96618109]
[1752470597635,456.89,167.44,167.41,3.61]
[1752470597824,456.89,167.44,167.38,3.61]
[1752470598028,3.37,167.41,167.33,3.61]
[1752470598229,453.24,167.4,167.37,3.61]
[1752470598431,453.08,167.39,167.33,17.32460942]
[1752470598624,404.82735282,167.38,167.36,4.96618109]
[1752470598827,453.5,167.42,167.37,4.54337416]
[1752470599027,453.5,167.42,167.39,0.17]
[1752470599336,453.5,167.42,167.41,6.1412]
[1752470599631,453.5,167.42,167.41,10.68457416]
[1752470599831,444.0487,167.42,167.41,10.68457416]
[1752470600239,453.3,167.5,167.42,0.17]
[1752470600437,456.67,167.5,167.46,0.17]
[1752470600634,3.37,167.49,167.42,4.97835424]
[1752470600838,3.37,167.49,167.4,6.62157479]
[1752470600839,8.74842833,167.49,167.43,4.54544859]
[1752470601043,3.37,167.47,167.38,4.97835424]
[1752470601242,454.6,167.46,167.39,4.716652]
[1752470601549,454.3,167.46,167.4,4.546652]
[1752470601745,457.67,167.46,167.43,0.17]
[1752470601937,454.3,167.46,167.44,0.17]
[1752470602240,454.3,167.46,167.45,0.17]
[1752470602741,454.3,167.46,167.45,4.71574653]
[1752470602945,454.3,167.46,167.42,8.74358839]
[1752470602946,454.3,167.46,167.42,8.91358839]
[1752470603146,457.67,167.46,167.43,4.71620798]
[1752470603345,457.67,167.46,167.43,0.17]
[1752470603845,457.67,167.46,167.4,8.91358839]
[1752470604045,457.67,167.46,167.41,4.71677613]
[1752470604046,3.37,167.45,167.41,4.71677613]
[1752470604250,3.37,167.45,167.41,0.17]
[1752470604449,3.37,167.45,167.38,0.17]
[1752470604746,3.37,167.42,167.39,4.54785969]
[1752470605054,3.37,167.4,167.34,0.17]
[1752470605347,3.37,167.4,167.35,4.54940316]
[1752470605541,3.37,167.4,167.36,4.54940316]
[1752470605742,3.37,167.4,167.33,4.97835424]
[1752470605950,3.37,167.33,167.29,4.97835424]
[1752470606249,446.33124991,167.32,167.29,3.61]
[1752470606445,3.37,167.37,167.28,12.37055318]
[1752470606641,174.2,167.36,167.3,3.61]
[1752470606845,225.44,167.39,167.31,13.73890742]
[1752470607046,225.44,167.39,167.32,8.74876615]
[1752470607250,225.44,167.39,167.33,9.584]
[1752470607852,225.24,167.39,167.34,5.9737]
[1752470608048,228.61,167.39,167.34,5.9737]
[1752470608247,3.37,167.44,167.33,12.35811907]
[1752470608450,228.33,167.43,167.37,3.61]
[1752470608654,3.37,167.47,167.39,8.74811907]
[1752470608848,3.37,167.47,167.4,3.61]
[1752470609048,3.37,167.47,167.41,5.9712]
[1752470609249,3.37,167.47,167.4,3.61]
[1752470610851,3.62,167.44,167.4,3.61]
[1752470611049,3.62,167.43,167.4,3.61]
[1752470611451,3.62,167.42,167.37,3.62]
[1752470611644,3.62,167.42,167.35,3.62]
[1752470612157,3.62,167.42,167.36,3.62]
[1752470612549,3.62,167.42,167.38,3.62]
[1752470612745,3.62,167.42,167.34,3.62]
[1752470612746,3.62,167.41,167.34,3.62]
[1752470613156,223.7,167.42,167.34,3.62]
[1752470613354,3.62,167.41,167.31,3.62]
[1752470613550,223.14,167.4,167.31,3.62]
[1752470613750,3.62,167.39,167.33,3.62]
[1752470615154,3.62,167.39,167.31,3.62]
[1752470615550,5.9738,167.34,167.31,3.62]
[1752470615755,5.9738,167.34,167.27,8.74811907]
[1752470615756,3.62,167.33,167.27,13.73473167]
[1752470615945,3.62,167.33,167.29,3.62]
[1752470616147,3.62,167.33,167.3,3.62]
[1752470616552,3.62,167.32,167.29,3.62]
[1752470616853,8.74811907,167.38,167.3,3.62]
[1752470617057,3.62,167.34,167.3,3.62]
[1752470617250,3.62,167.33,167.3,3.62]
[1752470617451,3.62,167.37,167.29,3.62]
[1752470617653,5.9731,167.36,167.29,3.62]
[1752470617849,5.9731,167.36,167.3,4.5327383]
[1752470618156,3.62,167.35,167.32,3.62]
[1752470618753,3.62,167.34,167.28,3.62]
[1752470618959,3.62,167.34,167.3,3.62]
[1752470619160,3.62,167.34,167.31,4.53256187]
[1752470619460,3.62,167.33,167.3,3.62]
[1752470619854,3.62,167.34,167.27,3.62]
[1752470620048,3.62,167.34,167.24,3.62]
[1752470620258,3.62,167.34,167.25,4.53263056]
[1752470620454,3.62,167.34,167.26,4.53263056]
[1752470620657,3.62,167.34,167.27,4.53263056]
[1752470620860,3.62,167.34,167.26,3.62]
[1752470621153,5.9745,167.32,167.26,5.9765]
[1752470621348,3.62,167.3,167.27,3.62]
[1752470621557,3.62,167.3,167.22,4.9866126]
[1752470621558,3.62,167.28,167.25,3.62]
[1752470621756,3.62,167.27,167.26,4.53124474]
[1752470622054,3.62,167.27,167.22,5.978]
[1752470622265,3.62,167.27,167.24,3.62]
[1752470622653,3.62,167.27,167.25,4.53059693]
[1752470622851,3.62,167.27,167.21,3.62]
[1752470623056,3.62,167.27,167.23,3.62]
[1752470623265,3.62,167.29,167.24,8.15044817]